bitfinex-derivatives/quotes_BTCF0:USTF0_20250127
["timestamp","ask_amount","ask_price","bid_price","bid_amount"]
[1737984207983,0.4755643,101310.0,101300.0,0.53095302]
[1737984208181,0.001,101310.0,101300.0,0.53095302]
[1737984208485,0.3618,101310.0,101300.0,0.314464]
[1737984208785,0.472754,101310.0,101300.0,0.306464]
[1737984208989,0.3618,101310.0,101300.0,0.53095302]
[1737984209188,0.3618,101310.0,101300.0,0.52195302]
[1737984209389,0.3628,101310.0,101300.0,0.117]
[1737984209685,0.4724825,101310.0,101300.0,0.117]
[1737984210089,0.6699275,101310.0,101300.0,0.117]
[1737984210386,0.6699275,101310.0,101300.0,0.008]
[1737984211283,0.7714825,101310.0,101300.0,0.004]
[1737984211475,0.197479,101300.0,101280.0,0.01578]
[1737984211679,0.7216,101290.0,101280.0,0.01578]
[1737984211988,0.83320598,101290.0,101280.0,0.01578]
[1737984212293,0.47240598,101290.0,101280.0,0.42977202]
[1737984212584,0.3608,101290.0,101280.0,0.205393]
[1737984212781,0.3608,101290.0,101280.0,0.197503]
[1737984213888,0.00214775,101300.0,101290.0,0.197484]
[1737984214081,0.00214775,101300.0,101290.0,0.41397302]
[1737984214082,0.36294775,101300.0,101290.0,0.41397302]
[1737984214282,0.47062607,101300.0,101290.0,0.41397302]
[1737984214486,0.46862607,101300.0,101290.0,0.197484]
[1737984214985,0.46862607,101300.0,101280.0,0.197488]
[1737984215180,0.3608,101290.0,101270.0,0.372597]
[1737984215389,0.3608,101290.0,101270.0,0.356817]
[1737984215390,0.3608,101280.0,101270.0,0.356817]
[1737984215590,0.3608,101280.0,101270.0,0.197517]
[1737984215789,0.46427495,101280.0,101270.0,0.197517]
[1737984217687,0.46427495,101280.0,101260.0,0.197538]
[1737984217987,0.3608,101270.0,101260.0,0.197538]
[1737984218188,0.3608,101270.0,101250.0,0.59952103]
[1737984218390,0.3608,101260.0,101250.0,0.57132026]
[1737984219990,0.3608,101260.0,101250.0,0.56164302]
[1737984220189,0.46595571,101260.0,101240.0,0.213375]
[1737984220388,0.3608,101250.0,101240.0,0.197575]
[1737984220589,0.3608,101250.0,101240.0,0.33821035]
[1737984221692,0.001,101250.0,101240.0,0.84977084]
[1737984221885,0.001,101250.0,101240.0,0.70913549]
[1737984222285,0.001,101250.0,101240.0,0.34833549]
[1737984222486,0.002,101250.0,101240.0,0.34833549]
[1737984222896,0.002,101250.0,101240.0,0.37302549]
[1737984223094,0.002,101250.0,101240.0,0.65986084]
[1737984223292,0.001,101250.0,101240.0,1.02066084]
[1737984223499,0.00014775,101260.0,101250.0,0.197562]
[1737984223692,0.00014775,101260.0,101250.0,0.84639735]
[1737984223886,0.5174,101280.0,101270.0,0.197523]
[1737984224090,0.5174,101280.0,101270.0,0.33815835]
[1737984224393,0.46388342,101280.0,101270.0,0.33815835]
[1737984224898,0.66139642,101280.0,101260.0,0.33817035]
[1737984225098,0.3608,101270.0,101260.0,0.33817035]
[1737984225294,0.558323,101270.0,101260.0,0.00014775]
[1737984225498,0.80826996,101270.0,101260.0,0.00014775]
[1737984226394,1.10290531,101270.0,101260.0,0.00014775]
[1737984226586,0.96226996,101270.0,101260.0,0.00014775]
[1737984226791,1.10290531,101270.0,101240.0,0.197577]
[1737984226991,0.3608,101250.0,101240.0,0.197577]
[1737984227194,0.7216,101250.0,101240.0,0.33821235]
[1737984227395,0.8280093,101250.0,101240.0,0.33821235]
[1737984228293,0.8290093,101250.0,101240.0,0.33821235]
[1737984228595,0.8300093,101250.0,101240.0,0.198577]
[1737984228796,0.8300093,101250.0,101240.0,0.001]
[1737984228998,0.8300093,101250.0,101240.0,0.198581]
[1737984230101,0.8300093,101250.0,101240.0,0.33921635]
[1737984230402,0.7236,101250.0,101240.0,0.33921635]
[1737984230900,0.83256728,101250.0,101240.0,0.001]
[1737984231093,1.17076463,101250.0,101240.0,0.001]
[1737984231292,0.14063535,101240.0,101200.0,0.2492]
[1737984231598,0.3608,101210.0,101200.0,0.446855]
[1737984231794,0.3608,101210.0,101200.0,0.58749035]
[1737984231995,0.3608,101220.0,101210.0,0.197634]
[1737984232196,0.3608,101220.0,101210.0,0.33826935]
[1737984232397,0.46896721,101220.0,101210.0,0.197634]
[1737984232697,0.46896721,101220.0,101210.0,0.33826935]
[1737984232897,0.46896721,101220.0,101210.0,0.197634]
[1737984233801,0.46896721,101220.0,101200.0,0.446855]
[1737984234003,0.3618,101210.0,101200.0,0.446855]
[1737984234509,0.46632492,101210.0,101200.0,0.446855]
[1737984235004,0.3608,101210.0,101200.0,0.58749035]
[1737984235399,0.3618,101210.0,101200.0,0.58749035]
[1737984235598,0.3618,101210.0,101200.0,0.446855]
[1737984235899,0.3618,101210.0,101200.0,0.1]
[1737984236097,0.47244738,101210.0,101200.0,0.1]
[1737984236292,0.197659,101200.0,101190.0,0.00998614]
[1737984236511,0.558459,101200.0,101180.0,0.0158]
[1737984236701,0.3608,101190.0,101180.0,0.0158]
[1737984237203,0.47229951,101190.0,101180.0,0.213498]
[1737984237400,0.47229951,101190.0,101180.0,0.197698]
[1737984237601,0.47229951,101190.0,101170.0,0.33834035]
[1737984237801,0.3608,101180.0,101170.0,0.33834035]
[1737984238198,0.46474934,101180.0,101170.0,0.36305035]
[1737984238399,0.46474934,101180.0,101170.0,0.02471]
[1737984238604,0.46474934,101180.0,101170.0,0.222427]
[1737984239306,0.46474934,101180.0,101170.0,0.197717]
[1737984239502,0.46574934,101180.0,101170.0,0.197717]
[1737984239702,0.46574934,101180.0,101170.0,0.33835235]
[1737984240101,0.3628,101180.0,101170.0,0.33835235]
[1737984240294,0.002,101180.0,101170.0,0.85675235]
[1737984240504,0.4751805,101180.0,101170.0,0.197717]
[1737984240809,0.4751805,101180.0,101160.0,0.36403498]
[1737984241004,0.3608,101170.0,101160.0,0.22339963]
[1737984241209,0.3608,101170.0,101160.0,0.0158]
[1737984241506,0.3608,101170.0,101150.0,0.66899635]
[1737984241707,0.3608,101160.0,101150.0,0.66899635]
[1737984242203,0.3608,101170.0,101160.0,0.197737]
[1737984242402,0.3608,101170.0,101150.0,0.34641]
[1737984242606,0.3608,101160.0,101150.0,0.1641]
[1737984242794,0.3608,101160.0,101150.0,0.0158]
[1737984242995,0.66889209,101160.0,101150.0,0.0158]
[1737984243603,0.61955509,101160.0,101130.0,0.64692235]
[1737984243806,0.7216,101140.0,101130.0,0.48932235]
[1737984244012,0.7216,101140.0,101130.0,0.1509]
[1737984244310,0.83428063,101140.0,101130.0,0.1509]
[1737984245109,0.36094775,101150.0,101130.0,0.14063535]
[1737984245306,0.3608,101140.0,101130.0,0.33842135]
[1737984245609,0.3618,101140.0,101130.0,0.33842135]
[1737984245811,0.3628,101140.0,101130.0,0.33842135]
[1737984246009,0.3628,101140.0,101130.0,0.197786]
[1737984246205,0.46697021,101140.0,101130.0,0.197786]
[1737984246806,0.46697021,101140.0,101120.0,0.33844035]
[1737984247013,0.3608,101130.0,101120.0,0.197805]
[1737984247509,0.46994918,101130.0,101120.0,0.197805]
[1737984248316,0.46994918,101130.0,101120.0,0.33844035]
[1737984248612,0.47094918,101130.0,101120.0,0.197805]
[1737984248912,0.47194918,101130.0,101120.0,0.33844035]
[1737984249305,0.3628,101130.0,101120.0,0.33844035]
[1737984249505,0.002,101130.0,101120.0,0.33844035]
[1737984249708,0.002,101130.0,101120.0,0.197805]
[1737984249906,0.002,101130.0,101120.0,0.33844035]
[1737984249907,0.11208126,101130.0,101120.0,0.33844035]
[1737984250107,0.11208126,101130.0,101120.0,0.34635035]
[1737984250108,0.3628,101130.0,101120.0,0.34635035]
[1737984250310,0.3628,101130.0,101120.0,0.00791]
[1737984250517,0.67015907,101130.0,101120.0,0.00791]
[1737984250916,0.66815907,101130.0,101120.0,0.00791]
[1737984251116,0.47236307,101130.0,101120.0,0.197815]
[1737984252016,0.61299842,101130.0,101110.0,0.1499]
[1737984252214,0.558615,101120.0,101110.0,0.15781]
[1737984252414,0.3608,101120.0,101110.0,0.15781]
[1737984252616,0.46840033,101120.0,101110.0,0.15781]
[1737984252821,0.46840033,101120.0,101110.0,0.49628035]
[1737984253122,0.3608,101120.0,101110.0,0.49628035]
[1737984253308,0.3608,101120.0,101110.0,1.99628035]
[1737984253515,0.3608,101120.0,101110.0,0.355645]
[1737984253814,0.47537731,101120.0,101110.0,0.347735]
[1737984254224,0.47537731,101120.0,101110.0,0.1499]
[1737984254422,0.47537731,101120.0,101100.0,0.297844]
[1737984254617,0.3608,101110.0,101100.0,0.297844]
[1737984254818,0.3608,101110.0,101100.0,0.1]
[1737984255016,0.60751227,101110.0,101080.0,0.00791]
[1737984255216,1.06010935,101090.0,101060.0,0.197929]
[1737984255411,0.7216,101070.0,101060.0,0.197929]
[1737984255614,0.7216,101070.0,101060.0,0.33856435]
[1737984255818,0.3608,101080.0,101070.0,0.197902]
[1737984256013,0.3608,101080.0,101070.0,0.33853735]
[1737984256215,0.3608,101080.0,101070.0,0.197902]
[1737984256418,0.47209529,101080.0,101070.0,0.197902]
[1737984257033,0.81063564,101080.0,101060.0,0.00791]
[1737984257215,0.50143535,101070.0,101060.0,0.00791]
[1737984257410,0.3608,101070.0,101060.0,0.00791]
[1737984257630,0.46906731,101070.0,101050.0,0.72032763]
[1737984257817,0.3608,101060.0,101050.0,0.57969228]
[1737984258217,0.46542782,101060.0,101050.0,0.57969228]
[1737984259020,0.46542782,101060.0,101050.0,0.38174828]
[1737984259321,0.46542782,101060.0,101050.0,0.57970028]
[1737984259712,0.80399517,101060.0,101050.0,0.22654828]
[1737984260322,1.26686317,101060.0,101040.0,0.28104989]
[1737984260522,0.69938735,101050.0,101040.0,0.28104989]
[1737984260726,0.197971,101040.0,101030.0,1.37441234]
[1737984260926,0.197991,101030.0,101020.0,0.61830977]
[1737984261125,0.19801,101020.0,101010.0,0.84314968]
[1737984261324,0.69944535,101020.0,101000.0,0.1014]
[1737984261522,0.69946535,101010.0,101000.0,0.1]
[1737984261832,0.46578739,101010.0,101000.0,0.1]
[1737984262016,0.60642274,101010.0,101000.0,0.1]
[1737984262216,0.198069,100990.0,100970.0,0.69720723]
[1737984262417,0.198069,100990.0,100950.0,1.15371264]
[1737984262418,0.198128,100960.0,100950.0,0.14852464]
[1737984262622,0.198148,100950.0,100940.0,0.57278064]
[1737984262921,0.198167,100940.0,100930.0,0.43440543]
[1737984263118,0.8402377,100940.0,100930.0,0.12636954]
[1737984263314,0.8402377,100940.0,100910.0,0.73072973]
[1737984263315,0.75604434,100940.0,100910.0,0.73072973]
[1737984263519,1.2010767,100920.0,100910.0,0.73072973]
[1737984263823,1.2010767,100920.0,100910.0,0.65752036]
[1737984264015,1.61505034,100920.0,100910.0,0.63455036]
[1737984264214,0.198226,100910.0,100900.0,0.00624]
[1737984264421,0.69966135,100910.0,100900.0,0.00286655]
[1737984264630,1.19245895,100910.0,100900.0,0.00286655]
[1737984264925,1.09332624,100910.0,100880.0,1.74348674]
[1737984265222,1.13839419,100890.0,100880.0,1.74348674]
[1737984265523,1.04825639,100890.0,100850.0,1.52835673]
[1737984265715,0.57932819,100870.0,100850.0,2.37141822]
[1737984265921,0.198363,100840.0,100830.0,0.0369]
[1737984266220,0.83554269,100840.0,100830.0,0.0369]
[1737984266619,1.03390569,100840.0,100830.0,0.0369]
[1737984266822,1.13554269,100840.0,100830.0,0.0369]
[1737984267026,0.8739146,100840.0,100830.0,0.0369]
[1737984267227,0.8739146,100840.0,100830.0,0.01708]
[1737984267228,0.5739146,100840.0,100830.0,0.01708]
[1737984267421,0.47474269,100840.0,100830.0,0.01708]
[1737984267726,0.11394269,100840.0,100830.0,0.86082149]
[1737984268029,0.1983,100880.0,100840.0,0.198363]
[1737984268030,0.3608,100880.0,100840.0,0.198363]
[1737984268227,0.3608,100880.0,100850.0,1.04208449]
[1737984268228,0.3608,100870.0,100850.0,1.04208449]
[1737984268431,0.10929635,100860.0,100850.0,0.559143]
[1737984268721,0.3608,100890.0,100880.0,0.198284]
[1737984268928,0.3608,100890.0,100870.0,0.84374149]
[1737984269122,0.3608,100890.0,100850.0,0.208258]
[1737984269123,0.47009635,100880.0,100850.0,0.208258]
[1737984269329,0.3608,100880.0,100860.0,0.559123]
[1737984269632,0.00014849,100890.0,100880.0,0.198284]
[1737984269834,0.3608,100910.0,100880.0,1.56172549]
[1737984270129,0.46422405,100920.0,100890.0,0.57932819]
[1737984270329,0.10342405,100910.0,100890.0,0.77759019]
[1737984270522,0.3608,100930.0,100900.0,1.20454149]
[1737984270731,0.3608,100940.0,100920.0,0.84374149]
[1737984270927,0.46422405,100930.0,100920.0,0.84374149]
[1737984271134,0.3608,100930.0,100920.0,0.84374149]
[1737984271435,0.88772017,100930.0,100920.0,0.00014849]
[1737984271732,0.88772017,100930.0,100900.0,0.84374149]
[1737984271927,0.3608,100910.0,100900.0,0.84374149]
[1737984272129,0.3608,100920.0,100910.0,0.84374149]
[1737984272330,0.7216,100920.0,100880.0,2.05012818]
[1737984272535,0.3608,100910.0,100880.0,2.05012818]
[1737984272724,0.468614,100920.0,100910.0,0.84374149]
[1737984272927,0.3608,100920.0,100910.0,0.84374149]
[1737984273122,0.666822,100920.0,100890.0,0.00014849]
[1737984273327,0.666822,100920.0,100900.0,0.84374149]
[1737984273525,0.468614,100920.0,100900.0,1.20454149]
[1737984274131,0.66682,100920.0,100900.0,0.84374149]
[1737984274333,0.3608,100910.0,100900.0,0.5460581]
[1737984274830,0.11230748,100910.0,100900.0,0.7443021]
[1737984275035,0.36094849,100930.0,100900.0,0.9068581]
[1737984275236,0.3608,100920.0,100910.0,0.5460581]
[1737984275426,0.3608,100920.0,100890.0,0.77827314]
[1737984275626,0.47172513,100920.0,100910.0,0.5460581]
[1737984276234,0.47172513,100920.0,100910.0,0.06979234]
[1737984276533,0.47172513,100920.0,100890.0,0.58002814]
[1737984276728,0.3608,100910.0,100900.0,0.06979234]
[1737984277130,0.11341257,100910.0,100900.0,0.62882734]
[1737984277337,0.00014849,100930.0,100920.0,0.198205]
[1737984277536,0.47171538,100940.0,100930.0,0.16845849]
[1737984277732,0.9199075,100940.0,100930.0,0.16845849]
[1737984278035,1.3861435,100940.0,100920.0,0.198203]
[1737984278224,0.3608,100930.0,100920.0,0.198203]
[1737984278429,1.38666351,100940.0,100920.0,0.198203]
[1737984278635,0.1077125,100930.0,100920.0,0.198203]
[1737984279139,0.92005599,100940.0,100930.0,0.198185]
[1737984279334,0.68545599,100940.0,100930.0,0.77751319]
[1737984279638,0.20915599,100940.0,100930.0,0.77751319]
[1737984279840,0.20915599,100940.0,100930.0,0.41671319]
[1737984280146,0.47334039,100940.0,100920.0,0.55914649]
[1737984280333,0.47334039,100940.0,100920.0,0.06324394]
[1737984280334,0.3608,100930.0,100920.0,0.06324394]
[1737984280539,0.3608,100930.0,100920.0,0.1982]
[1737984281434,0.4664903,100930.0,100910.0,0.37212819]
[1737984281635,0.3608,100920.0,100910.0,0.00014849]
[1737984281835,0.559005,100920.0,100910.0,0.00014849]
[1737984282039,0.4664903,100920.0,100910.0,0.00014849]
[1737984282432,0.6646953,100920.0,100910.0,0.00014849]
[1737984282628,0.4664903,100920.0,100910.0,0.21867668]
[1737984282841,0.4664903,100920.0,100910.0,0.00014849]
[1737984283141,0.4664903,100920.0,100900.0,0.198236]
[1737984283440,0.3608,100910.0,100900.0,0.41676419]
[1737984283634,0.4664903,100920.0,100900.0,0.21852819]
[1737984283841,0.3608,100920.0,100910.0,0.198225]
[1737984284842,0.46403511,100920.0,100900.0,0.41675819]
[1737984285143,0.3608,100910.0,100900.0,0.41675819]
[1737984288739,0.3608,100920.0,100910.0,0.198225]
[1737984288947,0.36094849,100930.0,100920.0,0.198205]
[1737984289134,0.36094849,100930.0,100920.0,0.41673319]
[1737984290037,0.3760784,100950.0,100920.0,0.87932819]
[1737984290242,0.3608,100960.0,100950.0,0.198147]
[1737984291344,0.37551359,100970.0,100960.0,0.198127]
[1737984291538,0.14091359,100970.0,100960.0,0.41665519]
[1737984291742,0.3608,100990.0,100980.0,0.198088]
[1737984291945,0.1,101000.0,100990.0,0.198068]
[1737984292237,0.02970002,101010.0,100980.0,0.57932819]
[1737984292430,0.03168002,101010.0,101000.0,0.41657619]
[1737984292631,0.03168002,101010.0,101000.0,1.91657619]
[1737984292841,0.03168002,101010.0,101000.0,0.41657619]
[1737984293143,0.39248002,101010.0,101000.0,0.41657619]
[1737984293339,0.91453066,101010.0,101000.0,0.2380934]
[1737984293639,0.91453066,101010.0,101000.0,0.41657619]
[1737984293847,1.22722598,101010.0,100990.0,0.19820749]
[1737984294045,0.3608,101000.0,100990.0,0.19820749]
[1737984294233,0.3608,101000.0,100990.0,0.00806849]
[1737984294439,0.67074492,101000.0,100990.0,0.00806849]
[1737984295148,0.67074492,101000.0,100990.0,0.00014849]
[1737984295542,0.47269692,101000.0,100980.0,0.21852819]
[1737984295742,0.3608,101000.0,100990.0,0.198051]
[1737984295941,0.3608,101000.0,100980.0,0.21852819]
[1737984296242,0.3608,100990.0,100970.0,0.198103]
[1737984296448,0.3608,100980.0,100970.0,0.206023]
[1737984296843,0.10327889,100980.0,100970.0,0.20617149]
[1737984297034,0.46407889,100980.0,100970.0,0.20617149]
[1737984297241,0.3608,100980.0,100960.0,0.21852819]
[1737984297441,0.3608,100970.0,100960.0,0.41663519]
[1737984297843,0.3608,100980.0,100960.0,0.41665519]
[1737984298142,0.36094849,100990.0,100970.0,0.21852819]
[1737984298344,0.36094849,100990.0,100980.0,0.198088]
[1737984298550,0.47186634,100990.0,100980.0,0.198088]
[1737984299148,0.66993834,100990.0,100970.0,0.206023]
[1737984299448,0.3608,100980.0,100970.0,0.198103]
[1737984299944,0.46735318,100980.0,100970.0,0.198103]
[1737984300153,0.46735318,100980.0,100970.0,0.41663119]
[1737984300451,0.62181547,100980.0,100970.0,0.41663119]
[1737984300655,0.62181547,100980.0,100970.0,0.21852819]
[1737984300846,0.62181547,100980.0,100970.0,0.41662719]
[1737984301345,0.26101547,100980.0,100970.0,0.77742719]
[1737984301553,4.9e-07,100990.0,100970.0,0.87932819]
[1737984301746,0.02970002,101010.0,100980.0,0.3608]
[1737984301951,0.02970002,101010.0,101000.0,0.77737619]
[1737984302451,0.6705,101070.0,101060.0,0.197931]
[1737984302649,0.1558,101070.0,101060.0,0.41645919]
[1737984302840,0.52205064,101070.0,101060.0,0.77725919]
[1737984303149,0.32016208,101080.0,101070.0,0.197911]
[1737984303350,0.3608,101090.0,101070.0,0.049475]
[1737984303547,0.3608,101090.0,101080.0,0.41642019]
[1737984303848,0.47086773,101090.0,101070.0,0.197908]
[1737984304154,0.3608,101080.0,101070.0,1.697908]
[1737984304943,0.558692,101080.0,101070.0,1.697908]
[1737984305342,0.558692,101080.0,101060.0,0.44923768]
[1737984305552,0.36094849,101090.0,101060.0,0.90420668]
[1737984305851,0.00014849,101090.0,101080.0,1.91642019]
[1737984306052,0.4608,101100.0,101090.0,0.197872]
[1737984306548,0.1,101100.0,101090.0,0.197872]
[1737984306759,0.2463801,101100.0,101090.0,0.205782]
[1737984306951,0.6071801,101100.0,101090.0,0.00791]
[1737984307149,0.9180809,101100.0,101090.0,0.00791]
[1737984307346,0.197872,101090.0,101080.0,0.00014849]
[1737984307547,0.197911,101070.0,101060.0,0.02473]
[1737984307748,0.919511,101070.0,101060.0,0.02473]
[1737984307952,0.919511,101070.0,101050.0,0.19795]
[1737984308148,0.919511,101070.0,101040.0,0.21852819]
[1737984308149,0.19795,101050.0,101040.0,0.41649419]
[1737984308452,0.55875,101050.0,101040.0,0.42440419]
[1737984308654,0.67034122,101050.0,101040.0,0.00791]
[1737984309053,0.19797,101040.0,101030.0,0.00014849]
[1737984309249,0.55877,101040.0,101030.0,0.00014849]
[1737984309448,0.6722414,101040.0,101030.0,0.00014849]
[1737984309643,0.4742714,101040.0,101000.0,0.21852819]
[1737984309851,0.7216,101010.0,101000.0,0.41657619]
[1737984310252,0.7216,101010.0,101000.0,0.42449619]
[1737984310649,0.3608,101020.0,101010.0,0.198029]
[1737984311058,0.36094849,101020.0,101010.0,0.198029]
[1737984311658,0.00014849,101020.0,101010.0,0.498029]
[1737984311949,0.36094849,101020.0,101010.0,0.198029]
[1737984312358,0.55895749,101020.0,101000.0,0.42448719]
[1737984312549,0.3608,101010.0,101000.0,0.205959]
[1737984312748,0.198048,101000.0,100990.0,0.19821249]
[1737984312950,0.558848,101000.0,100990.0,0.19821249]
[1737984313253,0.3608,101010.0,100990.0,0.00014849]
[1737984313454,0.3608,101010.0,101000.0,0.198048]
[1737984313652,0.7216,101010.0,101000.0,0.198048]
[1737984313850,0.7216,101010.0,101000.0,0.41657619]
[1737984314147,0.66557059,101010.0,101000.0,0.00792]
[1737984314353,0.46754159,101010.0,101000.0,0.205968]
[1737984314557,0.3608,101010.0,101000.0,0.205968]
[1737984314758,0.3608,101010.0,101000.0,0.42449619]
[1737984315156,0.36094849,101020.0,101000.0,0.22644819]
[1737984315356,0.36094849,101020.0,101010.0,0.198029]
[1737984315854,0.1168666,101020.0,101010.0,0.498029]
[1737984316063,6e-07,101020.0,101010.0,0.498029]
[1737984316360,6e-07,101020.0,101010.0,0.198029]
[1737984316747,0.3608006,101020.0,101010.0,0.498029]
[1737984316957,0.5588096,101020.0,101010.0,0.198029]
[1737984317460,0.5588276,101020.0,101010.0,0.198029]
[1737984317849,0.198029,101010.0,101000.0,0.205965]
[1737984318054,0.558829,101010.0,101000.0,0.205965]
[1737984318247,0.198048,101000.0,100990.0,0.00014849]
[1737984318455,0.198048,101000.0,100980.0,0.19808]
[1737984318456,0.3608,101000.0,100980.0,0.19808]
[1737984318652,0.3608,100990.0,100980.0,0.19808]
[1737984318949,0.3608,101000.0,100980.0,1.71852819]
[1737984319154,0.3608,100990.0,100980.0,1.71852819]
[1737984319358,0.3608,100990.0,100980.0,1.91661619]
[1737984319658,0.3608,100990.0,100980.0,1.92453619]
[1737984320460,0.3608,100990.0,100980.0,1.72644819]
[1737984320763,0.36094849,101000.0,100990.0,0.198068]
[1737984320962,0.72174849,101000.0,100990.0,0.198068]
[1737984323057,0.72174849,101000.0,100980.0,0.42452819]
[1737984323262,0.72174849,101000.0,100980.0,0.00792]
[1737984323263,0.558868,100990.0,100980.0,0.00792]
[1737984323463,0.198088,100980.0,100970.0,0.20617349]
[1737984323664,0.558888,100980.0,100970.0,0.19825349]
[1737984323866,0.3608,100980.0,100970.0,0.19825349]
[1737984324571,0.558888,100980.0,100970.0,0.19825349]
[1737984324864,0.3608,100980.0,100970.0,0.19825349]
[1737984325562,0.558888,100980.0,100970.0,0.19825349]
[1737984325769,0.198107,100970.0,100960.0,0.238714]
[1737984326063,0.3608,100970.0,100930.0,0.02606891]
[1737984326264,0.919782,100940.0,100920.0,0.41673119]
[1737984326470,0.3608,100930.0,100900.0,0.55510987]
[1737984326662,0.7216,100910.0,100900.0,0.53385319]
[1737984327162,0.3608,100910.0,100900.0,0.59925219]
[1737984327556,0.3608,100910.0,100900.0,0.54969319]
[1737984329458,0.3608,100920.0,100910.0,0.198225]
[1737984331071,0.00014849,100930.0,100920.0,0.198205]
[1737984331272,0.36094849,100930.0,100920.0,0.41673319]
[1737984331659,0.08821891,100930.0,100920.0,0.41673319]
[1737984331965,0.5171,100940.0,100920.0,0.41673319]
[1737984331966,0.32203622,100950.0,100920.0,0.87932819]
[1737984332161,0.31203622,100950.0,100940.0,0.41669419]
[1737984332767,0.67283622,100950.0,100940.0,0.71669419]
[1737984332975,0.67283622,100950.0,100940.0,0.41669419]
[1737984334070,0.5071801,100950.0,100940.0,1.91669419]
[1737984334375,0.01909222,100950.0,100940.0,2.21669419]
[1737984334561,0.01909222,100950.0,100940.0,1.91669419]
[1737984334766,0.01909222,100950.0,100940.0,2.21669419]
[1737984335173,0.36094849,100960.0,100950.0,0.198146]
[1737984335174,7.1e-07,100960.0,100950.0,0.198146]
[1737984335471,7.1e-07,100960.0,100950.0,0.558946]
[1737984335866,7.1e-07,100960.0,100950.0,2.058946]
[1737984336267,0.36080071,100960.0,100950.0,1.698146]
[1737984337177,0.36080071,100960.0,100930.0,0.00014849]
[1737984337370,0.36080071,100960.0,100910.0,0.198221]
[1737984337371,0.198205,100920.0,100910.0,0.198221]
[1737984337571,0.919805,100920.0,100910.0,0.198221]
[1737984337764,0.198225,100910.0,100900.0,0.331155]
[1737984337972,0.3608,100910.0,100900.0,0.331155]
[1737984338277,0.559025,100910.0,100900.0,0.331155]
[1737984338971,0.3608,100910.0,100900.0,0.331155]
[1737984339369,0.66778509,100910.0,100900.0,0.13292]
[1737984339666,0.66778509,100910.0,100900.0,0.198245]
[1737984339667,0.559028,100910.0,100900.0,0.198245]
[1737984339970,0.3608,100910.0,100900.0,0.41677319]
[1737984340275,0.3608,100910.0,100900.0,0.208145]
[1737984340872,0.3608,100910.0,100900.0,0.216065]
[1737984341371,0.3608,100910.0,100890.0,0.03338995]
[1737984341578,0.3608,100900.0,100880.0,0.19828]
[1737984341778,0.3608,100900.0,100870.0,0.198302]
[1737984341779,0.3608,100890.0,100870.0,0.198302]
[1737984341976,0.77761619,100880.0,100860.0,0.16994168]
[1737984342177,0.3608,100870.0,100850.0,0.51181537]
[1737984342378,0.3608,100860.0,100850.0,0.27251537]
[1737984342587,0.3608,100860.0,100840.0,0.33988337]
[1737984342875,0.3608,100850.0,100840.0,0.33988337]
[1737984343071,0.3608,100850.0,100840.0,0.53824637]
[1737984343267,0.3608,100850.0,100840.0,0.75677456]
[1737984343587,0.3578478,100850.0,100840.0,0.75677456]
[1737984344075,0.3608,100860.0,100850.0,0.198343]
[1737984344476,0.47532367,100860.0,100850.0,0.198343]
[1737984344870,0.3608,100860.0,100850.0,0.198343]
[1737984345584,0.47042299,100860.0,100850.0,0.198343]
[1737984346283,0.47042299,100860.0,100840.0,1.723145]
[1737984346585,0.3608,100850.0,100840.0,1.731075]
[1737984347083,0.46908125,100850.0,100840.0,1.731075]
[1737984347282,0.46908125,100850.0,100840.0,1.706285]
[1737984347485,0.35785686,100850.0,100840.0,1.92481319]
[1737984347985,0.50924849,100870.0,100860.0,0.198324]
[1737984348185,0.87004849,100870.0,100860.0,0.198324]
[1737984348485,0.98128396,100870.0,100860.0,0.198324]
[1737984348683,0.87004849,100870.0,100860.0,1.698324]
[1737984348883,0.98135417,100870.0,100860.0,1.698324]
[1737984349681,0.87004849,100870.0,100860.0,1.698324]
[1737984349883,0.98110573,100870.0,100860.0,1.698324]
[1737984350085,0.87004849,100870.0,100860.0,1.698324]
[1737984350279,0.87004849,100870.0,100860.0,0.198324]
[1737984350487,0.98110573,100870.0,100860.0,0.198324]
[1737984350989,0.87004849,100870.0,100860.0,1.698324]
[1737984351193,0.98435816,100870.0,100860.0,1.698324]
[1737984351789,0.98435816,100870.0,100860.0,0.198324]
[1737984352182,0.89978974,100870.0,100860.0,0.198324]
[1737984352377,0.89978974,100870.0,100860.0,1.698324]
[1737984352580,0.75148974,100870.0,100860.0,1.698324]
[1737984352779,0.75148974,100870.0,100860.0,1.91685219]
[1737984353386,0.75148974,100870.0,100860.0,1.698324]
[1737984353988,0.75148974,100870.0,100860.0,1.91685219]
[1737984354485,0.75148974,100870.0,100860.0,1.698324]
[1737984354793,0.86108985,100870.0,100860.0,0.198324]
[1737984355089,1.05939385,100870.0,100860.0,0.198324]
[1737984355290,1.05939385,100870.0,100840.0,1.52576037]
[1737984355487,0.7216,100850.0,100840.0,1.77371337]
[1737984356089,0.7216,100850.0,100840.0,1.72412337]
[1737984356485,0.7216,100850.0,100840.0,1.94265156]
[1737984356892,0.3608,100860.0,100840.0,2.10508856]
[1737984357087,0.3608,100860.0,100850.0,0.247928]
[1737984357491,0.42043099,100870.0,100860.0,0.198324]
[1737984358187,0.42043099,100870.0,100860.0,1.698324]
[1737984358383,0.05963099,100870.0,100860.0,1.698324]
[1737984358593,0.42043099,100870.0,100860.0,1.698324]
[1737984358794,0.05963099,100870.0,100860.0,1.698324]
[1737984359397,0.05963099,100870.0,100860.0,2.27765219]
[1737984360598,0.05963099,100870.0,100860.0,0.77765219]
[1737984360799,0.72660752,100870.0,100860.0,0.198324]
[1737984360992,0.19833,100860.0,100850.0,0.198336]
[1737984361193,0.19833,100860.0,100840.0,0.01586]
[1737984361194,0.198344,100850.0,100840.0,0.01586]
[1737984361490,0.198363,100840.0,100830.0,0.198379]
[1737984361691,0.559163,100840.0,100830.0,0.198379]
[1737984361893,0.67011734,100840.0,100830.0,0.198379]
[1737984362200,0.47175434,100840.0,100830.0,0.198379]
[1737984362601,0.3608,100840.0,100830.0,0.198379]
[1737984362899,0.36094849,100850.0,100840.0,0.198363]
[1737984363289,0.46795205,100850.0,100830.0,0.00793]
[1737984363491,0.77769119,100840.0,100830.0,0.00793]
[1737984363685,0.77769119,100840.0,100800.0,0.297909]
[1737984363889,0.3608,100810.0,100800.0,0.446742]